[Event "11th LCC Super Blitz KO 2019"]
[Site "London"]
[Date "2019.12.08"]
[Round "2.2"]
[White "Beinoras, Mindaugas"]
[Black "Wallace, John Paul"]
[Result "1-0"]
[ECO "A46"]
[WhiteElo "2350"]
[BlackElo "2344"]
[Annotator "NA"]
[PlyCount "93"]
[EventDate "2019.12.08"]
[EventType "k.o."]
[EventCountry "ENG"]
[SourceTitle "playchess.com"]
[Source "ChessBase"]
[SourceQuality "1"]
[TimeControl "180+2"]

1. d4 {[%emt 0:00:00]} Nf6 {[%emt 0:00:00]} 2. Bg5 {[%emt 0:00:01]} e6 {[%emt 0:00:02]} 3. e3 {[%emt 0:00:02]} h6 {[%emt 0:00:01]} 4. Bh4 {[%emt 0:00:01]} d6 {[%emt 0:00:04]} 5. Nf3 {[%emt 0:00:02]} g5 {[%emt 0:00:01]} 6. Bg3 {[%emt 0:00:02]} Ne4 {[%emt 0:00:00]} 7. Bd3 {[%emt 0:00:02]} Nxg3 {[%emt 0:00:02]} 8. hxg3 {[%emt 0:00:02]} Bg7 {[%emt 0:00:00]} 9. c3 {[%emt 0:00:02]} Nd7 {[%emt 0:00:03]} 10. e4 {[%emt 0:00:04]} b6 {[%emt 0:00:02]} 11. Nbd2 {[%emt 0:00:02]} Bb7 {[%emt 0:00:01]} 12. Qe2 {[%emt 0:00:01]} Qe7 {[%emt 0:00:01]} 13. a4 {[%emt 0:00:01]} a6 {[%emt 0:00:01]} 14. Nc4 {[%emt 0:00:13]} O-O {[%emt 0:00:21]} 15. e5 {[%emt 0:00:11]} f5 {[%emt 0:00:09]} 16. exf6 {[%emt 0:00:33]} Nxf6 {[%emt 0:00:01]} 17. Ncd2 {[%emt 0:00:04]} c5 {[%emt 0:00:15]} 18. O-O {[%emt 0:00:03]} Qd7 {[%emt 0:00:18]} 19. Rfe1 {[%emt 0:00:03]} Rfe8 {[%emt 0:00:01]} 20. Ne4 {[%emt 0:00:05]} Nd5 {[%emt 0:00:03]} 21. dxc5 {[%emt 0:00:12]} bxc5 {[%emt 0:00:02]} 22. a5 {[%emt 0:00:03]} Qc6 {[%emt 0:00:11]} 23. Rad1 {[%emt 0:00:05]} Rad8 {[%emt 0:00:01]} 24. Ned2 {[%emt 0:00:19]} Nc7 {[%emt 0:00:08]} 25. Be4 {[%emt 0:00:04]} d5 {[%emt 0:00:00]} 26. Bg6 {[%emt 0:00:01]} e5 {[%emt 0:01:01]} 27. Bxe8 {[%emt 0:00:04]} Rxe8 {[%emt 0:00:00]} 28. c4 {[%emt 0:00:20]} e4 {[%emt 0:00:18]} 29. Nh2 {[%emt 0:00:29]} d4 {[%emt 0:00:00]} 30. f3 {[%emt 0:00:07]} d3 {[%emt 0:00:07]} 31. Qf1 {[%emt 0:00:00]} e3 {[%emt 0:00:10]} 32. Qxd3 {[%emt 0:00:01]} exd2 {[%emt 0:00:02]} 33. Qxd2 {[%emt 0:00:06]} Bd4+ {[%emt 0:00:11]} 34. Kh1 {[%emt 0:00:03]} Rf8 {[%emt 0:00:05]} 35. Qd3 {[%emt 0:00:02]} Qf6 {[%emt 0:00:07]} 36. b3 {[%emt 0:00:05]} h5 {[%emt 0:00:03]} 37. Re2 {[%emt 0:00:08]} Ne6 {[%emt 0:00:14]} 38. Rde1 {[%emt 0:00:02]} Ng7 {[%emt 0:00:00]} 39. Re7 {[%emt 0:00:03]} Rf7 {[%emt 0:00:04]} 40. Rxf7 {[%emt 0:00:07]} Qxf7 {[%emt 0:00:02]} 41. Qe2 {[%emt 0:00:03]} g4 {[%emt 0:00:03]} 42. Qe7 {[%emt 0:00:05]} gxf3 {[%emt 0:00:03]} 43. Qxf7+ Kxf7 {[%emt 0:00:01]} 44. Nxf3 {[%emt 0:00:03]} Bc3 {[%emt 0:00:04]} 45. Rd1 {[%emt 0:00:04]} Bxf3 {[%emt 0:00:04]} 46. gxf3 {[%emt 0:00:02]} Nf5 {[%emt 0:00:02]} 47. Rd5 {[%emt 0:00:01]} 1-0

[Event "11th LCC Super Blitz KO 2019"]
[Site "London"]
[Date "2019.12.08"]
[Round "2.3"]
[White "McShane, Luke J"]
[Black "Speelman, Jon S"]
[Result "1-0"]
[ECO "B11"]
[WhiteElo "2677"]
[BlackElo "2509"]
[Annotator "ChessBase"]
[PlyCount "65"]
[EventDate "2019.12.08"]
[EventType "k.o."]
[EventCountry "ENG"]
[SourceTitle "playchess.com"]
[Source "ChessBase"]
[SourceQuality "1"]
[TimeControl "180+2"]

1. e4 {[%emt 0:00:00]} c6 {[%emt 0:00:00]} 2. Nf3 {[%emt 0:00:00]} d5 {[%emt 0:00:00]} 3. Nc3 {[%emt 0:00:00]} Bg4 {[%emt 0:00:00]} 4. h3 {[%emt 0:00:00]} Bxf3 {[%emt 0:00:00]} 5. Qxf3 {[%emt 0:00:00]} e6 {[%emt 0:00:00]} 6. g3 {[%emt 0:00:00]} Nd7 {[%emt 0:00:00]} 7. Bg2 {[%emt 0:00:00]} Ngf6 {[%emt 0:00:00]} 8. d3 {[%emt 0:00:00]} g6 {[%emt 0:00:00]} 9. O-O {[%emt 0:00:00]} Bg7 {[%emt 0:00:00]} 10. Qe2 {[%emt 0:00:00]} O-O {[%emt 0:00:00]} 11. Nb1 {[%emt 0:00:00]} a5 {[%emt 0:00:00]} 12. a4 {[%emt 0:00:00]} Qc7 {[%emt 0:00:00]} 13. Nd2 {[%emt 0:00:00]} b5 {[%emt 0:00:00]} 14. Nf3 {[%emt 0:00:00]} bxa4 {[%emt 0:00:06]} 15. e5 {[%emt 0:00:00]} Ne8 {[%emt 0:00:03]} 16. Re1 {[%emt 0:00:00]} Nb6 {[%emt 0:00:08]} 17. h4 {[%emt 0:00:00]} h6 {[%emt 0:00:15]} 18. h5 {[%emt 0:00:00]} c5 {[%emt 0:00:14]} 19. Bh3 {[%emt 0:00:00]} Qe7 {[%emt 0:00:25]} 20. hxg6 {[%emt 0:00:00]} fxg6 {[%emt 0:00:03]} 21. Nh4 {[%emt 0:00:00]} Qf7 {[%emt 0:00:12]} 22. f4 {[%emt 0:00:00]} Nc7 {[%emt 0:00:05]} 23. Qg4 {[%emt 0:00:05]} Kh7 {[%emt 0:00:06]} 24. Bg2 {[%emt 0:00:17]} Rad8 {[%emt 0:00:16]} 25. Be3 {[%emt 0:00:04]} h5 {[%emt 0:00:08]} 26. Qh3 {[%emt 0:00:05]} Qe7 {[%emt 0:00:05]} 27. g4 {[%emt 0:00:10]} d4 {[%emt 0:00:14]} 28. Nxg6 {[%emt 0:00:06]} Qf7 {[%emt 0:00:14]} 29. Qxh5+ {[%emt 0:00:05]} Kg8 {[%emt 0:00:03]} 30. Be4 {[%emt 0:00:18]} Rfe8 {[%emt 0:00:15]} 31. Kg2 {[%emt 0:00:20]} dxe3 {[%emt 0:00:17]} 32. Rh1 {[%emt 0:00:02]} Bxe5 {[%emt 0:00:04]} 33. Qxe5 {[%emt 0:00:11]} 1-0

[Event "11th LCC Super Blitz KO 2019"]
[Site "London"]
[Date "2019.12.08"]
[Round "2.3"]
[White "Turner, Matthew J"]
[Black "Gormally, Daniel W"]
[Result "0-1"]
[ECO "B08"]
[WhiteElo "2519"]
[BlackElo "2497"]
[Annotator "ChessBase"]
[PlyCount "54"]
[EventDate "2019.12.08"]
[EventType "k.o."]
[EventCountry "ENG"]
[SourceTitle "playchess.com"]
[Source "ChessBase"]
[SourceQuality "1"]
[TimeControl "180+2"]

1. d4 {[%emt 0:00:00]} Nf6 {[%emt 0:00:00]} 2. Nf3 {[%emt 0:00:00]} g6 {[%emt 0:00:00]} 3. Nc3 {[%emt 0:00:00]} Bg7 {[%emt 0:00:00]} 4. e4 {[%emt 0:00:00]} d6 {[%emt 0:00:00]} 5. Bc4 {[%emt 0:00:00]} O-O {[%emt 0:00:00]} 6. O-O {[%emt 0:00:00]} Nxe4 {[%emt 0:00:00]} 7. Bxf7+ {[%emt 0:00:00]} Rxf7 {[%emt 0:00:00]} 8. Nxe4 {[%emt 0:00:00]} h6 {[%emt 0:00:00]} 9. h3 {[%emt 0:00:00]} e6 {[%emt 0:00:07]} 10. c3 {[%emt 0:00:01]} Nc6 {[%emt 0:00:06]} 11. Qb3 {[%emt 0:00:00]} Kh8 {[%emt 0:00:08]} 12. Bd2 {[%emt 0:00:00]} Rxf3 13. gxf3 {[%emt 0:00:00]} Qh4 {[%emt 0:00:29]} 14. Ng3 {[%emt 0:00:00]} Qxh3 {[%emt 0:00:13]} 15. Rae1 {[%emt 0:00:00]} b6 {[%emt 0:00:08]} 16. d5 {[%emt 0:00:00]} Ne5 {[%emt 0:00:10]} 17. c4 {[%emt 0:00:00]} exd5 {[%emt 0:00:09]} 18. cxd5 {[%emt 0:00:02]} Ba6 19. Re3 {[%emt 0:00:47]} Bc4 {[%emt 0:00:10]} 20. Qd1 {[%emt 0:00:23]} Rf8 {[%emt 0:00:23]} 21. Rfe1 {[%emt 0:00:20]} Bxd5 {[%emt 0:00:08]} 22. Qe2 {[%emt 0:01:52]} Bc4 {[%emt 0:00:19]} 23. Rxe5 {[%emt 0:00:12]} Bxe2 {[%emt 0:00:03]} 24. R5xe2 {[%emt 0:00:04]} Rxf3 {[%emt 0:00:21]} 25. Re8+ {[%emt 0:00:04]} Kh7 {[%emt 0:00:03]} 26. R8e3 {[%emt 0:00:01]} Rxe3 {[%emt 0:00:08]} 27. Rxe3 {[%emt 0:00:04]} Be5 {[%emt 0:00:06]} 0-1

[Event "11th LCC Super Blitz KO 2019"]
[Site "London"]
[Date "2019.12.08"]
[Round "2.3"]
[White "Harvey, Marcus R"]
[Black "Rendle, Thomas E"]
[Result "1-0"]
[ECO "C40"]
[WhiteElo "2412"]
[BlackElo "2361"]
[Annotator "NA"]
[PlyCount "109"]
[EventDate "2019.12.08"]
[EventType "k.o."]
[EventCountry "ENG"]
[SourceTitle "playchess.com"]
[Source "ChessBase"]
[SourceQuality "1"]
[TimeControl "180+2"]

1. Nf3 {[%emt 0:00:00]} f5 {[%emt 0:00:00]} 2. d3 {[%emt 0:00:00]} Nc6 {[%emt 0:00:00]} 3. e4 {[%emt 0:00:00]} e5 {[%emt 0:00:00]} 4. Nc3 {[%emt 0:00:00]} Nf6 {[%emt 0:00:00]} 5. h3 {[%emt 0:00:00]} Bb4 {[%emt 0:00:00]} 6. exf5 {[%emt 0:00:00]} d5 {[%emt 0:00:00]} 7. g4 {[%emt 0:00:00]} O-O {[%emt 0:00:03]} 8. a3 {[%emt 0:00:00]} Bxc3+ {[%emt 0:00:04]} 9. bxc3 {[%emt 0:00:00]} e4 {[%emt 0:00:04]} 10. Nd4 {[%emt 0:00:00]} Ne5 {[%emt 0:00:12]} 11. Bf4 {[%emt 0:00:00]} Qe7 {[%emt 0:00:02]} 12. Be2 {[%emt 0:00:00]} c5 {[%emt 0:00:11]} 13. Ne6 {[%emt 0:00:00]} Nf3+ {[%emt 0:00:05]} 14. Bxf3 {[%emt 0:00:00]} exf3 {[%emt 0:00:04]} 15. Kd2 {[%emt 0:00:00]} Bxe6 {[%emt 0:00:06]} 16. Re1 {[%emt 0:00:00]} Ne4+ {[%emt 0:00:08]} 17. dxe4 {[%emt 0:00:00]} dxe4 {[%emt 0:00:04]} 18. Kc1 {[%emt 0:00:00]} Rad8 {[%emt 0:00:06]} 19. Bd2 {[%emt 0:00:05]} Bc4 {[%emt 0:00:04]} 20. Qxf3 {[%emt 0:00:08]} Rxd2 {[%emt 0:00:21]} 21. Qxe4 {[%emt 0:00:07]} Qxe4 {[%emt 0:00:21]} 22. Rxe4 {[%emt 0:00:03]} Rxf2 {[%emt 0:00:18]} 23. Rxc4 {[%emt 0:00:04]} Rd8 {[%emt 0:00:11]} 24. Kb2 {[%emt 0:00:10]} Rdd2 {[%emt 0:00:07]} 25. Rc1 {[%emt 0:00:02]} b6 {[%emt 0:00:02]} 26. Re4 {[%emt 0:00:03]} Kf7 {[%emt 0:00:04]} 27. a4 {[%emt 0:00:10]} Rh2 {[%emt 0:00:05]} 28. Re3 {[%emt 0:00:04]} Rhe2 {[%emt 0:00:05]} 29. Rxe2 {[%emt 0:00:05]} Rxe2 {[%emt 0:00:03]} 30. Rd1 Ke7 31. Rd3 {[%emt 0:00:08]} Rh2 {[%emt 0:00:07]} 32. Kb3 {[%emt 0:00:04]} h6 {[%emt 0:00:03]} 33. Re3+ {[%emt 0:00:03]} Kd7 {[%emt 0:00:03]} 34. Re6 {[%emt 0:00:05]} Rxh3 {[%emt 0:00:04]} 35. Rg6 {[%emt 0:00:02]} Rg3 {[%emt 0:00:13]} 36. Rxg7+ {[%emt 0:00:03]} Kc6 {[%emt 0:00:02]} 37. Kc4 {[%emt 0:00:06]} Rg2 {[%emt 0:00:07]} 38. Rg6+ {[%emt 0:00:03]} Kc7 {[%emt 0:00:03]} 39. Kb5 {[%emt 0:00:06]} Rxc2 {[%emt 0:00:06]} 40. Rxh6 {[%emt 0:00:05]} Rxc3 {[%emt 0:00:02]} 41. g5 {[%emt 0:00:13]} Rb3+ {[%emt 0:00:08]} 42. Kc4 {[%emt 0:00:03]} Rf3 {[%emt 0:00:06]} 43. f6 {[%emt 0:00:03]} Kd6 {[%emt 0:00:03]} 44. Rh8 {[%emt 0:00:19]} Rf4+ {[%emt 0:00:03]} 45. Kc3 {[%emt 0:00:03]} Ke6 {[%emt 0:00:04]} 46. g6 {[%emt 0:00:08]} Rf3+ {[%emt 0:00:11]} 47. Kc4 {[%emt 0:00:05]} Rf4+ {[%emt 0:00:02]} 48. Kb5 {[%emt 0:00:03]} Kd6 {[%emt 0:00:10]} 49. g7 {[%emt 0:00:07]} Rb4+ {[%emt 0:00:03]} 50. Ka6 {[%emt 0:00:03]} Kc7 {[%emt 0:00:06]} 51. Rc8+ {[%emt 0:00:07]} Kxc8 {[%emt 0:00:03]} 52. g8=Q+ {[%emt 0:00:03]} Kc7 {[%emt 0:00:03]} 53. Qf7+ {[%emt 0:00:05]} Kc6 {[%emt 0:00:02]} 54. Qe8+ {[%emt 0:00:01]} Kc7 55. f7 {[%emt 0:00:07]} 1-0

[Event "11th LCC Super Blitz KO 2019"]
[Site "London"]
[Date "2019.12.08"]
[Round "3.1"]
[White "Howell, David W L"]
[Black "Harvey, Marcus R"]
[Result "1/2-1/2"]
[ECO "A30"]
[WhiteElo "2676"]
[BlackElo "2412"]
[Annotator "ChessBase"]
[PlyCount "92"]
[EventDate "2019.12.08"]
[EventType "k.o."]
[EventCountry "ENG"]
[SourceTitle "playchess.com"]
[Source "ChessBase"]
[SourceQuality "1"]
[TimeControl "180+2"]

1. Nf3 {[%emt 0:00:00]} Nf6 {[%emt 0:00:00]} 2. c4 {[%emt 0:00:01]} b6 {[%emt 0:00:00]} 3. g3 {[%emt 0:00:07]} Bb7 {[%emt 0:00:02]} 4. Bg2 {[%emt 0:00:01]} e6 {[%emt 0:00:00]} 5. O-O {[%emt 0:00:05]} c5 {[%emt 0:00:01]} 6. Nc3 {[%emt 0:00:07]} Be7 {[%emt 0:00:01]} 7. d4 {[%emt 0:00:00]} cxd4 {[%emt 0:00:02]} 8. Qxd4 {[%emt 0:00:02]} O-O {[%emt 0:00:03]} 9. Rd1 {[%emt 0:00:10]} Nc6 {[%emt 0:00:16]} 10. Qf4 {[%emt 0:00:03]} Qb8 {[%emt 0:00:38]} 11. b3 {[%emt 0:00:05]} Rd8 {[%emt 0:00:07]} 12. Qxb8 {[%emt 0:00:40]} Raxb8 {[%emt 0:00:01]} 13. Bf4 {[%emt 0:00:01]} Rbc8 {[%emt 0:00:01]} 14. Nb5 {[%emt 0:00:05]} d5 {[%emt 0:00:02]} 15. Ne5 {[%emt 0:00:05]} Nxe5 {[%emt 0:00:14]} 16. Bxe5 {[%emt 0:00:01]} a6 {[%emt 0:00:07]} 17. Nc3 {[%emt 0:00:08]} Nd7 {[%emt 0:00:03]} 18. Bd4 {[%emt 0:00:47]} e5 {[%emt 0:00:09]} 19. Be3 {[%emt 0:00:05]} Bc5 {[%emt 0:00:37]} 20. Bxc5 {[%emt 0:00:14]} Nxc5 {[%emt 0:00:01]} 21. Bxd5 {[%emt 0:00:05]} Kf8 {[%emt 0:00:06]} 22. Kf1 {[%emt 0:00:13]} Bxd5 {[%emt 0:00:12]} 23. Rxd5 {[%emt 0:00:00]} Rxd5 {[%emt 0:00:01]} 24. Nxd5 {[%emt 0:00:01]} Rb8 {[%emt 0:00:10]} 25. Ke1 {[%emt 0:00:07]} Ne6 {[%emt 0:00:04]} 26. Rd1 {[%emt 0:00:10]} b5 {[%emt 0:00:02]} 27. Rc1 {[%emt 0:00:01]} Rc8 {[%emt 0:00:05]} 28. Nb4 {[%emt 0:00:09]} a5 {[%emt 0:00:24]} 29. Nd3 {[%emt 0:00:00]} bxc4 {[%emt 0:00:03]} 30. Rxc4 {[%emt 0:00:08]} Rxc4 {[%emt 0:00:01]} 31. bxc4 {[%emt 0:00:00]} f6 {[%emt 0:00:01]} 32. Kd2 {[%emt 0:00:01]} Ke7 {[%emt 0:00:01]} 33. h4 {[%emt 0:00:04]} h5 {[%emt 0:00:02]} 34. Kc3 {[%emt 0:00:03]} Kd6 {[%emt 0:00:02]} 35. e3 {[%emt 0:00:04]} g5 {[%emt 0:00:04]} 36. f3 {[%emt 0:00:12]} gxh4 {[%emt 0:00:02]} 37. gxh4 {[%emt 0:00:01]} Ng7 {[%emt 0:00:01]} 38. Ne1 {[%emt 0:00:03]} Nf5 {[%emt 0:00:02]} 39. Ng2 {[%emt 0:00:00]} Kc5 {[%emt 0:00:02]} 40. Kd3 {[%emt 0:00:01]} Nd6 {[%emt 0:00:01]} 41. f4 {[%emt 0:00:06]} e4+ {[%emt 0:00:01]} 42. Kc3 {[%emt 0:00:04]} Nxc4 {[%emt 0:00:04]} 43. f5 {[%emt 0:00:00]} a4 {[%emt 0:00:02]} 44. Nf4 {[%emt 0:00:03]} Nxe3 {[%emt 0:00:02]} 45. Nxh5 {[%emt 0:00:01]} Nxf5 {[%emt 0:00:01]} 46. Nxf6 {[%emt 0:00:01]} Nxh4 {[%emt 0:00:03]} 1/2-1/2

[Event "11th LCC Super Blitz KO 2019"]
[Site "London"]
[Date "2019.12.08"]
[Round "3.1"]
[White "Gharamian, Tigran"]
[Black "McShane, Luke J"]
[Result "1-0"]
[ECO "C54"]
[WhiteElo "2603"]
[BlackElo "2677"]
[Annotator "ChessBase"]
[PlyCount "69"]
[EventDate "2019.12.08"]
[EventType "k.o."]
[EventCountry "ENG"]
[SourceTitle "playchess.com"]
[Source "ChessBase"]
[SourceQuality "1"]
[TimeControl "180+2"]

1. e4 {[%emt 0:00:00]} e5 {[%emt 0:00:00]} 2. Nf3 {[%emt 0:00:02]} Nc6 {[%emt 0:00:00]} 3. Bc4 {[%emt 0:00:02]} Bc5 {[%emt 0:00:01]} 4. c3 {[%emt 0:00:02]} Nf6 {[%emt 0:00:01]} 5. d3 {[%emt 0:00:01]} a6 {[%emt 0:00:01]} 6. O-O {[%emt 0:00:03]} d6 {[%emt 0:00:02]} 7. a4 {[%emt 0:00:02]} Ba7 {[%emt 0:00:01]} 8. Re1 {[%emt 0:00:09]} h6 {[%emt 0:00:02]} 9. Be3 {[%emt 0:00:05]} Bxe3 {[%emt 0:00:15]} 10. Rxe3 {[%emt 0:00:03]} O-O {[%emt 0:00:02]} 11. h3 {[%emt 0:00:06]} Ne7 {[%emt 0:00:09]} 12. d4 {[%emt 0:00:12]} exd4 {[%emt 0:00:11]} 13. Nxd4 {[%emt 0:00:03]} d5 {[%emt 0:00:08]} 14. exd5 {[%emt 0:00:03]} Nexd5 {[%emt 0:00:01]} 15. Re1 {[%emt 0:00:06]} Qd6 {[%emt 0:00:06]} 16. Nd2 {[%emt 0:00:04]} Bd7 {[%emt 0:00:05]} 17. Qf3 {[%emt 0:00:08]} Rfe8 {[%emt 0:00:05]} 18. Ne4 {[%emt 0:00:08]} Nxe4 {[%emt 0:01:01]} 19. Rxe4 {[%emt 0:00:01]} Rxe4 {[%emt 0:00:07]} 20. Qxe4 {[%emt 0:00:02]} Nb6 {[%emt 0:00:01]} 21. Bb3 {[%emt 0:00:12]} Rb8 {[%emt 0:00:20]} 22. a5 {[%emt 0:00:07]} Nc8 {[%emt 0:00:01]} 23. Re1 {[%emt 0:00:10]} Qf6 {[%emt 0:00:08]} 24. Qd5 {[%emt 0:00:29]} Nd6 {[%emt 0:00:05]} 25. Qc5 {[%emt 0:00:02]} Rc8 {[%emt 0:00:10]} 26. Re3 {[%emt 0:00:04]} Qg5 {[%emt 0:00:06]} 27. Qxg5 {[%emt 0:00:04]} hxg5 {[%emt 0:00:01]} 28. Nf3 {[%emt 0:00:00]} Rb8 {[%emt 0:00:33]} 29. Nxg5 {[%emt 0:00:12]} b6 {[%emt 0:00:00]} 30. Re7 {[%emt 0:00:04]} Be8 {[%emt 0:00:01]} 31. Rxc7 {[%emt 0:00:22]} bxa5 {[%emt 0:00:01]} 32. Bd5 {[%emt 0:00:07]} Rxb2 {[%emt 0:00:01]} 33. Ra7 {[%emt 0:00:01]} Rb5 {[%emt 0:00:02]} 34. c4 {[%emt 0:00:01]} Nxc4 {[%emt 0:00:02]} 35. Bxf7+ {[%emt 0:00:17]} 1-0

[Event "11th LCC Super Blitz KO 2019"]
[Site "London"]
[Date "2019.12.08"]
[Round "3.1"]
[White "Moussard, Jules"]
[Black "Beinoras, Mindaugas"]
[Result "1-0"]
[ECO "C76"]
[WhiteElo "2598"]
[BlackElo "2350"]
[Annotator "ChessBase"]
[PlyCount "67"]
[EventDate "2019.12.08"]
[EventType "k.o."]
[EventCountry "ENG"]
[SourceTitle "playchess.com"]
[Source "ChessBase"]
[SourceQuality "1"]
[TimeControl "180+2"]

1. e4 {[%emt 0:00:00]} e5 {[%emt 0:00:00]} 2. Nf3 {[%emt 0:00:00]} Nc6 {[%emt 0:00:00]} 3. Bb5 {[%emt 0:00:01]} a6 {[%emt 0:00:01]} 4. Ba4 {[%emt 0:00:01]} d6 {[%emt 0:00:00]} 5. O-O {[%emt 0:00:08]} Bd7 {[%emt 0:00:01]} 6. c3 {[%emt 0:00:02]} g6 {[%emt 0:00:02]} 7. d4 {[%emt 0:00:02]} Bg7 {[%emt 0:00:02]} 8. d5 {[%emt 0:00:02]} Nb8 {[%emt 0:00:01]} 9. c4 {[%emt 0:00:02]} Nf6 {[%emt 0:00:02]} 10. Nc3 {[%emt 0:00:02]} O-O {[%emt 0:00:02]} 11. Bxd7 {[%emt 0:00:03]} Nbxd7 {[%emt 0:00:01]} 12. Qc2 {[%emt 0:00:17]} h6 {[%emt 0:00:12]} 13. Ne1 {[%emt 0:00:05]} Nh5 {[%emt 0:00:03]} 14. Nd3 {[%emt 0:00:02]} f5 {[%emt 0:00:09]} 15. f3 {[%emt 0:00:01]} Nf4 {[%emt 0:00:07]} 16. Bxf4 {[%emt 0:00:09]} exf4 {[%emt 0:00:03]} 17. Nxf4 {[%emt 0:00:01]} Qf6 {[%emt 0:00:24]} 18. Ne6 {[%emt 0:00:02]} Rfc8 {[%emt 0:00:03]} 19. exf5 {[%emt 0:00:08]} Qxf5 {[%emt 0:00:08]} 20. Ne4 {[%emt 0:00:06]} Be5 {[%emt 0:00:17]} 21. Rad1 {[%emt 0:00:06]} c6 {[%emt 0:00:08]} 22. Qb3 {[%emt 0:00:04]} Rab8 {[%emt 0:00:12]} 23. g4 {[%emt 0:00:03]} Qf7 {[%emt 0:00:25]} 24. f4 {[%emt 0:00:01]} cxd5 {[%emt 0:00:14]} 25. cxd5 {[%emt 0:00:02]} Bh8 {[%emt 0:00:12]} 26. Nxd6 {[%emt 0:00:03]} Qe7 {[%emt 0:00:03]} 27. Nxc8 {[%emt 0:00:02]} Rxc8 {[%emt 0:00:01]} 28. d6 {[%emt 0:00:01]} Qf7 {[%emt 0:00:01]} 29. f5 {[%emt 0:00:07]} g5 {[%emt 0:00:07]} 30. Rfe1 {[%emt 0:00:08]} b5 {[%emt 0:00:06]} 31. Nc7 {[%emt 0:00:03]} Ne5 {[%emt 0:00:05]} 32. Rxe5 {[%emt 0:00:06]} Bxe5 {[%emt 0:00:18]} 33. Qxf7+ {[%emt 0:00:02]} Kxf7 {[%emt 0:00:02]} 34. d7 {[%emt 0:00:01]} 1-0

[Event "11th LCC Super Blitz KO 2019"]
[Site "London"]
[Date "2019.12.08"]
[Round "3.1"]
[White "Gormally, Daniel W"]
[Black "Jones, Gawain C B"]
[Result "1/2-1/2"]
[ECO "D78"]
[WhiteElo "2497"]
[BlackElo "2683"]
[Annotator "ChessBase"]
[PlyCount "105"]
[EventDate "2019.12.08"]
[EventType "k.o."]
[EventCountry "ENG"]
[SourceTitle "playchess.com"]
[Source "ChessBase"]
[SourceQuality "1"]
[TimeControl "180+2"]

1. d4 {[%emt 0:00:00]} Nf6 {[%emt 0:00:00]} 2. Nf3 {[%emt 0:00:01]} g6 {[%emt 0:00:00]} 3. c4 {[%emt 0:00:01]} Bg7 {[%emt 0:00:00]} 4. g3 {[%emt 0:00:01]} O-O {[%emt 0:00:02]} 5. Bg2 c6 {[%emt 0:00:02]} 6. O-O {[%emt 0:00:03]} d5 {[%emt 0:00:00]} 7. b3 {[%emt 0:00:01]} c5 {[%emt 0:00:04]} 8. cxd5 {[%emt 0:00:12]} cxd4 {[%emt 0:00:08]} 9. Nxd4 {[%emt 0:00:10]} Nxd5 {[%emt 0:00:01]} 10. Bb2 {[%emt 0:00:06]} e5 {[%emt 0:00:15]} 11. Nb5 {[%emt 0:00:29]} Be6 {[%emt 0:00:01]} 12. N1c3 {[%emt 0:00:01]} Nxc3 {[%emt 0:00:12]} 13. Nxc3 {[%emt 0:00:06]} Nc6 {[%emt 0:00:03]} 14. Nd5 {[%emt 0:00:15]} Nd4 {[%emt 0:00:06]} 15. Bxd4 {[%emt 0:00:10]} Bxd5 {[%emt 0:00:09]} 16. Bc5 {[%emt 0:00:09]} Bxg2 {[%emt 0:00:02]} 17. Kxg2 {[%emt 0:00:04]} Re8 {[%emt 0:00:06]} 18. Qxd8 {[%emt 0:00:07]} Rexd8 {[%emt 0:00:01]} 19. Rfd1 {[%emt 0:00:02]} b6 {[%emt 0:00:08]} 20. Be3 {[%emt 0:00:06]} Kf8 {[%emt 0:00:09]} 21. g4 {[%emt 0:00:04]} f5 {[%emt 0:00:07]} 22. gxf5 {[%emt 0:00:06]} gxf5 {[%emt 0:00:01]} 23. Bg5 {[%emt 0:00:01]} Rxd1 24. Rxd1 {[%emt 0:00:01]} Ke8 {[%emt 0:00:04]} 25. Rd6 {[%emt 0:00:03]} Rc8 {[%emt 0:00:08]} 26. Re6+ {[%emt 0:00:04]} Kf8 {[%emt 0:00:03]} 27. e3 {[%emt 0:00:23]} Rc2 {[%emt 0:00:04]} 28. Rd6 {[%emt 0:00:21]} Rxa2 {[%emt 0:00:07]} 29. Rd7 {[%emt 0:00:04]} h6 {[%emt 0:00:40]} 30. Bh4 {[%emt 0:00:01]} f4 {[%emt 0:00:02]} 31. exf4 {[%emt 0:00:07]} exf4 {[%emt 0:00:00]} 32. Kf3 {[%emt 0:00:01]} a5 {[%emt 0:00:07]} 33. Rb7 {[%emt 0:00:05]} Bd4 {[%emt 0:00:03]} 34. Ke4 {[%emt 0:00:09]} Bc5 {[%emt 0:00:03]} 35. Kf5 {[%emt 0:00:01]} Ke8 {[%emt 0:00:07]} 36. Kg6 {[%emt 0:00:18]} Rb2 {[%emt 0:00:08]} 37. Bf6 {[%emt 0:00:06]} Rxf2 {[%emt 0:00:15]} 38. Kf5 {[%emt 0:00:04]} Re2 {[%emt 0:00:03]} 39. Kxf4 {[%emt 0:00:01]} Rxh2 {[%emt 0:00:07]} 40. Kf5 {[%emt 0:00:00]} Re2 {[%emt 0:00:06]} 41. Be5 {[%emt 0:00:02]} h5 {[%emt 0:00:21]} 42. Ke6 {[%emt 0:00:01]} Rxe5+ {[%emt 0:00:02]} 43. Kxe5 {[%emt 0:00:01]} h4 {[%emt 0:00:01]} 44. Rh7 {[%emt 0:00:02]} Bf2 {[%emt 0:00:01]} 45. Ke4 {[%emt 0:00:06]} Kd8 {[%emt 0:00:04]} 46. Kf3 {[%emt 0:00:03]} Bg3 {[%emt 0:00:02]} 47. Ke4 {[%emt 0:00:07]} b5 {[%emt 0:00:08]} 48. Kd5 {[%emt 0:00:01]} a4 {[%emt 0:00:01]} 49. bxa4 {[%emt 0:00:01]} bxa4 {[%emt 0:00:01]} 50. Kc4 {[%emt 0:00:01]} Ke8 {[%emt 0:00:01]} 51. Kb4 {[%emt 0:00:01]} Kf8 {[%emt 0:00:01]} 52. Kxa4 {[%emt 0:00:01]} Kg8 {[%emt 0:00:01]} 53. Rxh4 {[%emt 0:00:08]} 1/2-1/2